Cogmind - Beta 9 @@@ ROGUE MODE // 2019.10.22 @ 22:40:56 Player: BOBIT Result: Destroyed by G-47 Trooper with Particle Gun Performance ------------- Evolutions (2) 1000 Regions Visited (5) 1000 Robots Destroyed (16) 80 Value Destroyed (477) 477 Prototype IDs (1) 20 Alien Tech Used (0) 0 Bonus (300) 300 TOTAL SCORE: 2877 Bonus ------- Aligned with FarCom 300 Cogmind --------- Core Integrity 0/550 Matter 130/300 Energy 100/100 System Corruption 3% Temperature Cool (18) Location -8/Materials Parts ------- Power (1) Propulsion (4) Utility (4) Signal Interpreter Weapon (2) Inventory (4) Light Fission Core Light Fission Core Supersonic Drone Bay (0/1) Assault Rifle Peak State ------------ Power Light Nuclear Core Propulsion Hover Unit Hover Unit Improved Hover Unit Utility Signal Interpreter ECM Suite Supersonic Drone Bay Weapon Minigun Rocket Launcher Inventory Light Fission Core Light Fission Core Light Fission Core Assault Rifle [Rating: 23] Favorites ----------- Power Light Ion Engine Engine Light Ion Engine Power Core Light Nuclear Core Propulsion Hover Unit Wheel Wheel Hover Unit Hover Unit Flight Unit Flight Unit Utility Signal Interpreter Device Supersonic Drone Bay Storage Small Storage Unit Processor Signal Interpreter Weapon Assault Rifle Energy Gun Medium Laser Ballistic Gun Assault Rifle Launcher Rocket Launcher Build | -11 -10 -10 -10 -9 -8 ------- Run | Scr Mat Min Exi Min Mat Slots Evolved 4 | . . . . . 4 Power . | . . . . . . Propulsion 2 | . . . . . 2 Utility 2 | . . . . . 2 Weapon . | . . . . . . Parts Attached 30 | 6 5 6 4 4 5 Power 4 | 1 1 . 1 . 1 Engine 3 | 1 1 . 1 . . Core 1 | . . . . . 1 Reactor . | . . . . . . Propulsion 11 | 2 2 3 2 . 2 Treads . | . . . . . . Leg . | . . . . . . Wheel 2 | 2 . . . . . Hover 6 | . 2 . 2 . 2 Flight 3 | . . 3 . . . Utility 5 | 1 1 1 1 . 1 Device 3 | . . 1 1 . 1 Storage 1 | 1 . . . . . Processor 1 | . 1 . . . . Hackware . | . . . . . . Protection . | . . . . . . Artifact . | . . . . . . Weapon 10 | 2 1 2 . 4 1 Energy Gun 2 | 1 1 . . . . Energy Cannon . | . . . . . . Ballistic Gun 5 | 1 . 1 . 2 1 Ballistic Cannon . | . . . . . . Launcher 3 | . . 1 . 2 . Special Weapon . | . . . . . . Impact Weapon . | . . . . . . Slashing Weapon . | . . . . . . Piercing Weapon . | . . . . . . Special Melee Weapon . | . . . . . . Unidentified Prototypes 1 | . . . 1 . . Parts Lost 6 | . . 1 . . 5 Power 1 | . . . . . 1 Propulsion 3 | . . 1 . . 2 Utility 1 | . . . . . 1 Weapon 1 | . . . . . 1 Highest Loss Streak 5 | . . 1 . . 5 Average Slot Usage (%) 88 | . 89 93 100 99 69 Engine 11 | . 14 14 14 14 3 Core 1 | . . . . . 3 Hover 19 | . 25 10 16 28 20 Flight 5 | . . 16 11 . . Device 11 | . . 4 14 14 16 Storage 2 | . 14 5 . . . Processor 11 | . 6 14 14 14 9 Energy Gun 1 | . 11 3 . . . Ballistic Gun 18 | . 14 18 28 23 8 Launcher 3 | . . 5 . 4 7 Naked Turns . | . . . . . . Heaviest Build 14 | 13 13 12 7 10 14 Greatest Support 20 | 20 20 12 12 12 20 Greatest Overweight (x) 3 | . 2 2 . . 3 Average Overweight (x) . | . . . . . . Largest Inventory Capacity 6 | 6 6 6 4 4 4 Average Capacity 4 | 5 6 4 4 4 4 Most Carried 6 | 6 6 6 4 4 4 Average Carried 4 | 3 5 4 3 4 3 Final Capacity 4 | . . . . . 4 Final Carried 4 | . . . . . 4 Class Distribution -------------------- 100% | Mutant Dominant Class ---------------- Mutant | -10/Materials Mutant | -10/Mines Mutant | -10/Exiles Mutant | -9/Mines Mutant | -8/Materials Resources | -11 -10 -10 -10 -9 -8 ----------- Run | Scr Mat Min Exi Min Mat Matter Collected 531 | 185 . 76 . 80 190 Remotely . | . . . . . . Salvage Created 326 | . . 55 . 45 226 Parts 26 | . . 10 . 1 15 Haulers Intercepted . | . . . . . . Recyclers Shooed . | . . . . . . Parts Field Recycled . | . . . . . . Retrieved Matter . | . . . . . . Parts Self-Destructed . | . . . . . . Prevented . | . . . . . . Kills | -11 -10 -10 -10 -9 -8 ------- Run | Scr Mat Min Exi Min Mat Combat Hostiles Destroyed 14 | . . 6 . 1 7 Guns 5 | . . 2 . 1 2 AOE 8 | . . 4 . . 4 Classes Destroyed 4 | . . 1 . 1 2 Builder 2 | . . . . . 2 Swarmer 6 | . . 6 . . . Grunt 7 | . . . . 1 6 Sentry 1 | . . . . . 1 Best Kill Streak 5 | . . 3 . 1 5 Combat Bots Only 3 | . . 3 . 1 3 Max Kills in Single Turn 2 | . . 2 . 1 2 Gunslinging . | . . . . . . Exploded 2 | . . 2 . . 2 Melee . | . . . . . . Uniques/NPCs Destroyed . | . . . . . . Combat | -11 -10 -10 -10 -9 -8 -------- Run | Scr Mat Min Exi Min Mat Damage Taken 1130 | . 20 86 . 54 970 Core 619 | . 8 36 . 18 557 Absorbed by Shields . | . . . . . . Core Remaining (%) 87 | 100 . . . 75 . Volleys Fired 34 | . . 7 . 4 23 Largest 2 | . . 2 . 2 2 Hottest 58 | . . 50 . 53 58 Shots Fired 51 | . . 8 . 7 36 Gun 32 | . . 5 . 4 23 Cannon . | . . . . . . Launcher 19 | . . 3 . 3 13 Special . | . . . . . . Kinetic 32 | . . 5 . 4 23 Thermal . | . . . . . . Explosive 19 | . . 3 . 3 13 Electromagnetic . | . . . . . . Robot Hit Streak 7 | . . 1 . 1 7 Robot Miss Streak 4 | . . 2 . 3 4 Penetration Max . | . . . . . . Secondary Targets . | . . . . . . Shots Hit Robots 24 | . . 2 . 2 20 Core Hits 35 | . 1 7 . 3 24 Critical Hits . | . . . . . . Critical Kills . | . . . . . . Critical Parts Destroyed . | . . . . . . Melee Attacks . | . . . . . . Impact . | . . . . . . Slashing . | . . . . . . Piercing . | . . . . . . Sneak Attacks . | . . . . . . Combat Hostiles . | . . . . . . Follow-up Attacks . | . . . . . . Damage Inflicted 1304 | . 7 211 . 125 961 Guns 237 | . . 22 . 28 187 Cannons . | . . . . . . Explosions 1042 | . . 189 . 97 756 Melee . | . . . . . . Ramming 25 | . 7 . . . 18 Kinetic 237 | . . 22 . 28 187 Thermal . | . . . . . . Explosive 1042 | . . 189 . 97 756 Electromagnetic . | . . . . . . Impact . | . . . . . . Slashing . | . . . . . . Piercing . | . . . . . . Highest Corruption 3 | . . . . . 3 Average Corruption 2 | . . . . . 2 Corruption Purged . | . . . . . . Overload Shots . | . . . . . . Overflow Damage 44 | . . 27 . 9 8 Projectiles . | . . . . . . Explosions 44 | . . 27 . 9 8 Melee . | . . . . . . Knockbacks . | . . . . . . Impact . | . . . . . . Kinetic . | . . . . . . Secondary . | . . . . . . Self-Inflicted Damage 199 | . 3 51 . 38 107 Shots 6 | . . 2 . 1 3 Rammed 13 | . 2 . . . 11 Targets Rammed 13 | . 2 . . . 11 Kicked . | . . . . . . Crushed . | . . . . . . Highest Temperature 75 | . . . . 13 75 Average Temperature 23 | . . . . 9 26 Received Heat Transfer 474 | . 6 . . 9 459 Siege Activations . | . . . . . . Robots Corrupted . | . . . . . . Combat Hostiles . | . . . . . . Parts Fried . | . . . . . . Impact Corruptions . | . . . . . . Robots Melted . | . . . . . . Combat Hostiles . | . . . . . . Parts Melted . | . . . . . . Heat Transferred . | . . . . . . Parts Sabotaged . | . . . . . . Parts Stolen . | . . . . . . Parts Stripped . | . . . . . . Power Chain Reactions . | . . . . . . Missiles Intercepted . | . . . . . . Alert | -11 -10 -10 -10 -9 -8 ------- Run | Scr Mat Min Exi Min Mat Peak Influence 311 | . . 130 . 30 311 Average Influence 60 | . . 79 . 6 124 Maximum Alert Level 1 | . . . . . 1 Low Security (%) 91 | . . . . . . Level 1 8 | . . . . . . Level 2 . | . . . . . . Level 3 . | . . . . . . Level 4 . | . . . . . . Level 5 . | . . . . . . High Security . | . . . . . . Max Security . | . . . . . . Squads Dispatched 3 | . . . . . 3 Investigation 1 | . . . . . 1 Extermination . | . . . . . . Reinforcement 2 | . . . . . 2 Assault . | . . . . . . Garrison . | . . . . . . Intercept . | . . . . . . Construction Impeded . | . . . . . . Haulers Reinforced . | . . . . . . Stealth | -11 -10 -10 -10 -9 -8 --------- Run | Scr Mat Min Exi Min Mat Distress Signals 1 | . . . . . 1 Communications Jammed . | . . . . . . Distress Signals . | . . . . . . Times Spotted 32 | . 2 6 . 2 22 Peak Tracking Total 12 | . 2 3 . 2 12 Tactical Retreats 1 | . . . . 1 . Traps | -11 -10 -10 -10 -9 -8 ------- Run | Scr Mat Min Exi Min Mat Traps Triggered . | . . . . . . Indirectly . | . . . . . . Trap Hack Attempts . | . . . . . . Triggered . | . . . . . . Disarmed . | . . . . . . Reprogrammed . | . . . . . . Reused . | . . . . . . Traps Extracted . | . . . . . . Installed . | . . . . . . Triggered . | . . . . . . Machines | -11 -10 -10 -10 -9 -8 ---------- Run | Scr Mat Min Exi Min Mat Machines Disabled 3 | . . . . . 3 Max in Single Turn 1 | . . . . . 1 Machines Sabotaged . | . . . . . . Garrisons Compromised . | . . . . . . Overloaded Fab Kills . | . . . . . . Fab Network Shutdowns . | . . . . . . Hacking | -11 -10 -10 -10 -9 -8 --------- Run | Scr Mat Min Exi Min Mat Machines Accessed 5 | . 1 . 3 . 1 Terminals . | . . . . . . Fabricators . | . . . . . . Repair Stations 1 | . . . . . 1 Recycling Units 1 | . 1 . . . . Scanalyzers . | . . . . . . Garrison Access . | . . . . . . Total Hacks 30 | . 5 . 20 . 5 Successful 28 | . 4 . 20 . 4 Failed 2 | . 1 . . . 1 Catastrophic . | . . . . . . Database Lockouts . | . . . . . . Manual 2 | . . . 2 . . Terminals . | . . . . . . Fabricators . | . . . . . . Repair Stations 5 | . . . . . 5 Recycling Units 5 | . 5 . . . . Scanalyzers . | . . . . . . Garrison Access . | . . . . . . Terminal Hacks 20 | . . . 20 . . Record 20 | . . . 20 . . Fabricator Hacks . | . . . . . . Repair Station Hacks 4 | . . . . . 4 Scan Component 2 | . . . . . 2 Repair 2 | . . . . . 2 Recycling Unit Hacks 4 | . 4 . . . . Recycle Component 1 | . 1 . . . . Process 1 | . 1 . . . . Report Inventory 1 | . 1 . . . . Retrieve Matter 1 | . 1 . . . . Scanalyzer . | . . . . . . Garrison Access Hacks . | . . . . . . Unauthorized Hacks . | . . . . . . Terminals . | . . . . . . Fabricators . | . . . . . . Repair Stations . | . . . . . . Recycling Units . | . . . . . . Scanalyzers . | . . . . . . Garrison Access . | . . . . . . Data Cores Recovered . | . . . . . . Used . | . . . . . . Hacking Detections 1 | . . . . . 1 Full Trace Events 1 | . . . . . 1 Feedback Events . | . . . . . . Feedback Blocked . | . . . . . . Robot Schematics Acquired . | . . . . . . Robots Built . | . . . . . . Matter . | . . . . . . Time . | . . . . . . Total Robot Build Rating . | . . . . . . Part Schematics Acquired . | . . . . . . Parts Built . | . . . . . . Matter . | . . . . . . Time . | . . . . . . Total Part Build Rating . | . . . . . . Parts Repaired 1 | . . . . . 1 Time 52 | . . . . . 52 Parts Recycled 1 | . 1 . . . . Recycled Matter 49 | . 49 . . . . Retrieved Matter 49 | . 49 . . . . Retrieved Components . | . . . . . . Parts Scanalyzed . | . . . . . . Part Schematics Acquired . | . . . . . . Parts Damaged . | . . . . . . Bothacking | -11 -10 -10 -10 -9 -8 ------------ Run | Scr Mat Min Exi Min Mat Used RIF Installer . | . . . . . . Robots Hacked . | . . . . . . Non-combat . | . . . . . . Combat . | . . . . . . Robot Hacks Applied . | . . . . . . Relay Couplers Released . | . . . . . . Robots Rewired . | . . . . . . Allies Hacked . | . . . . . . Hacks Repelled . | . . . . . . Allies | -11 -10 -10 -10 -9 -8 -------- Run | Scr Mat Min Exi Min Mat Total Allies . | . . . . . . Largest Group . | . . . . . . Highest-Rated Group . | . . . . . . Highest-Rated Ally . | . . . . . . Total Orders 11 | . . . 3 7 1 ROAM 2 | . . . 1 . 1 EXPLORE 3 | . . . . 3 . RETURN 6 | . . . 2 4 . Ally Attacks . | . . . . . . Total Damage . | . . . . . . Kills . | . . . . . . Allies Corrupted . | . . . . . . Allies Melted . | . . . . . . Intel | -11 -10 -10 -10 -9 -8 ------- Run | Scr Mat Min Exi Min Mat Robot Analysis Total . | . . . . . . Derelict Logs Recovered 1 | . . . . 1 . Drone Launches 7 | . . . 2 4 1 Drone Recoveries 6 | . . . 2 4 . Exploration | -11 -10 -10 -10 -9 -8 ------------- Run | Scr Mat Min Exi Min Mat Turns Passed 1110 | 73 113 160 257 207 300 Spaces Moved 1624 | 72 170 290 522 327 243 Core 37 | 1 . . . . 36 Treads . | . . . . . . Legs . | . . . . . . Wheels 80 | 71 9 . . . . Hover 1024 | . 161 75 254 327 207 Flight 483 | . . 215 268 . . Fastest Speed 37 | 50 56 37 37 56 50 Average Speed 52 | 79 58 45 46 56 56 Slowest Speed 200 | 80 180 200 56 56 200 Overloaded Moves . | . . . . . . Propulsion Burnouts . | . . . . . . Robots Hopped . | . . . . . . Cave-ins Triggered . | . . . . . . Exploration Rate (%) 48 | 4 30 47 86 96 26 Regions Visited 5 Branch Regions 3 Pre-discovered Areas . | . . . . . . Known Exits Taken 4 | . 1 1 1 1 . Unknown Exits Taken 1 | 1 . . . . . Scrap Searched 2 | . . . . 2 . Spaces Dug 8 | . . 8 . . . Terrain Destroyed 151 | . . 26 . 35 90 Melee . | . . . . . . Projectile 1 | . . . . . 1 AOE 150 | . . 26 . 35 89 Actions | -11 -10 -10 -10 -9 -8 --------- Run | Scr Mat Min Exi Min Mat Total 1837 | 84 184 312 539 343 375 Wait 98 | . . . 5 5 88 Move 1619 | 71 169 289 521 326 243 Hop . | . . . . . . Pick Up 14 | 7 3 1 3 . . Fast Attach 22 | 5 3 4 2 4 4 Attach 7 | 1 1 2 2 . 1 Detach 7 | . 1 2 2 . 2 Swap 1 | . 1 . . . . Drop 22 | . 4 7 4 4 3 Fire 34 | . . 7 . 4 23 Melee . | . . . . . . Ram 13 | . 2 . . . 11 Kick . | . . . . . . Crush . | . . . . . . Escape Stasis . | . . . . . . Rewire . | . . . . . . Trap . | . . . . . . Miscellaneous . | . . . . . . Route ------- -11/Scrapyard -10/Materials -10/Mines -10/Exiles (discovered 2 exits: *Min x2) -9/Mines (discovered 2 exits: *Mat x2) -8/Materials History --------- Turn | Location | Event 12 | -11/Scrapyard | Discovered new exit (range 13) 74 | -11/Scrapyard | Entered Materials 168 | -10/Materials | Discovered new exit (range 9) 186 | -10/Materials | Identified exit to Mines 187 | -10/Materials | Entered Mines 220 | -10/Mines | Assembled infested the area 313 | -10/Mines | Build established: Mutant 346 | -10/Mines | Discovered new exit (range 5) 347 | -10/Mines | Identified exit to Exiles 347 | -10/Mines | Entered Exiles 353 | -10/Exiles | Discovered new exit (range 15) 359 | -10/Exiles | Met 8R-AWN 364 | -10/Exiles | Met EX-HEX 390 | -10/Exiles | Met EX-BIN 402 | -10/Exiles | Aligned with FarCom system 402 | -10/Exiles | Given EX-Vault access code 534 | -10/Exiles | Opened EX-Vault 538 | -10/Exiles | Found Prototype Device 538 | -10/Exiles | Identified Supersonic Drone Bay 552 | -10/Exiles | Warned to stay clear of 0b10 Research branches 577 | -10/Exiles | Met EX-DEC 598 | -10/Exiles | Discovered new exit (range 10) 604 | -10/Exiles | Identified exit to Mines 604 | -10/Exiles | Left Exiles lab with Supersonic Drone Bay 604 | -10/Exiles | Entered Mines 687 | -9/Mines | Learned Materials stockpile data 741 | -9/Mines | Received a Rocket Launcher from a helpful Derelict 779 | -9/Mines | Discovered new exit (range 11) 779 | -9/Mines | Discovered new exit (range 29) 811 | -9/Mines | Identified exit to Materials 811 | -9/Mines | Entered Materials 811 | -8/Materials | Evolved 4 slots: Propulsion x2, Utility x2 848 | -8/Materials | Repaired Hover Unit 1095 | -8/Materials | Core integrity fell below 50% 1108 | -8/Materials | Core integrity fell below 20% 1111 | -8/Materials | Destroyed by G-47 Trooper with Particle Gun Last Messages --------------- 01084_ Trailblazer destroyed. 01086_ ALERT: Hostiles spotted, dispatching reinforcements to Terminal M007. 01087_ U-05 Engineer lays Concrete. 01088_ U-05 Engineer builds a Wall. 01090_ Acquired 85 matter. 01092_ Slammed into G-47 Trooper. 01093_ U-05 Engineer lays Concrete. 01094_ Slammed into G-47 Trooper. 01094_ Destabilizing: Core damaged (-27). 01094_ U-05 Engineer lays Concrete. 01095_ Slammed into G-47 Trooper. 01095_ U-05 Engineer lays Concrete. 01096_ Slammed into G-47 Trooper. 01098_ Destabilizing: System corrupted (+2). 01099_ Slammed into G-47 Trooper. 01099_ Destabilizing: System corrupted (+1). 01099_ U-05 Engineer builds a Wall. 01100_ Slammed into G-47 Trooper. 01103_ ECM Suite destroyed. Map ----- +----------------------------------------------------+ | ??????????? ?????????????????# +? | | ??????????? ?????????????????# ##? | | ??????????? ?????????????????# #?? | | ???????????## ?????????????????# +?? | | ????????????? ??????##+#####???# ######?? | | ????????????? ??????# #???# #??????? | | ????????????? ??????# ##+##### ######?? | | ????????????? ??????# %# + +?? | | ????????????? ??????# # #### ######?? | | ????????????? ??????# # #??####### #??????? | | ????????????? ??????# # #Y!??????# #?????## | | ????????????? ??????# # == ##!!?????# #???? ? | | ????????????? ??????+ # = ## ??## ##?? | | ????????????? ??????# ######### # ## | | ????????????# ####### ##??????# + T | | ?????????#### Y a g #??????# # ##+##/# | | # gg g #???########??## ##?????? | | + T g #???# #????# #??????? | | # #???# ###### #??????? | | # ##### #???# gg #??????? | | # ????????####+### #???# g###g########??? | | ??????????????o???## ##??# g #?# ## #### | | ??????????Y???????# #??## ##?# ## # ## | | ??????????????????# ##### #?## # # | | ??????????????????#[ gg #### # # #= | | ??????????????????# @ g ## " | | ?????????????/????# ####!# | | ??????????????????# ##+####### *! # | | ??????????????????# # ?????# [% % | | ??????????????????####+####] ?????###*= | | ??????????????????????????# ?????## # | | ??????????????????????????# ??????# # | | ??????????????????????????# ?????# [ | | ??????????????????????????# ?????# * | | ??????????????????????????#######????####### | | ???????????????????????????????????????????# | | ???????????????????????????????????????????## | | ????????????????????????????????????????????###### | | ?????????????????????????????????????????????????? | | ?????????????????????????????????????????????????? | | | | | | | | | | | | | | | | | | | | | +----------------------------------------------------+ Best States ------------- Heat Dissipation 31 Energy Generation 14 Energy Capacity 250 Matter Stores 232 Matter Capacity 300 Sight Range 16 Terrain Scan Density 10 ECM Strength 1 Evasion (%) 62 Item Schematics ----------------- None Robot Schematics ------------------ None Fabricated ------------ Nothing Alien Tech Used ----------------- None Achievements -------------- None Challenges ------------ None Game ------ Seed TitaniumTractorTrap Manual? 0 Play Time 00:24:15 Cumulative 21.6 hours Start 2019.10.22 @ 22:17:50 End 2019.10.22 @ 22:40:56 Sessions 1 Manual Loads 0 Difficulty Rogue Special Mode None Game No. 52 Rogue 52 Adventurer 0 Explorer 0 Win Type - Total 0 Types 0/0/0/0/0/0/0 Lore% 16 Gallery% 32 Achievement% 22 Wizard Run 0 Options --------- ASCII 1 Keyboard 1 Movement Numpad Keybinds 0 Fullscreen 2 Font 18/TerminusBold Map View 76x50 Tactical HUD 1 Map Filters NONE Filters NONE Steam 1 RUN: d368ce5e-2c80-4ed7-b7e2-5bdbb2adca04